fUST/lending_fUST_20240227
["ID","MTS","AMOUNT","RATE_DAILY","PERIOD"]
[315346691,1708985438955,-2350.52,0.00019452,2]
[315346692,1708985438964,-500.0,0.00019452,2]
[315346695,1708985438975,-3146.89,0.00019452,2]
[315346696,1708985438984,-500.0,0.00019452,2]
[315346699,1708985438994,-500.0,0.00019452,2]
[315346700,1708985439006,-500.0,0.00019452,2]
[315346702,1708985439015,-500.0,0.00019452,2]
[315346704,1708985439024,-1725.21,0.00019452,2]
[315346706,1708985439034,-2517.74,0.00019452,2]
[315346709,1708985439043,-500.0,0.00019452,2]
[315346710,1708985439053,-500.0,0.00019452,2]
[315346712,1708985439062,-1992.99,0.00019452,2]
[315346714,1708985439072,-1001.44015609,0.00019452,2]
[315346716,1708985439081,-500.0,0.00019452,2]
[315346718,1708985439091,-500.0,0.00019452,2]
[315346721,1708985439100,-510.36105547,0.00019452,2]
[315346723,1708985439109,-2352.08,0.00019452,2]
[315346725,1708985439119,-500.0,0.00019452,2]
[315346727,1708985439128,-1897.11,0.00019452,2]
[315346729,1708985439137,-1000.0,0.00019452,2]
[315346730,1708985439145,-612.23784616,0.00019452,2]
[315346732,1708985439154,-500.0,0.00019452,2]
[315346734,1708985439164,-500.0,0.00019452,2]
[315346736,1708985439172,-500.0,0.00019452,2]
[315346738,1708985439182,-443.78647685,0.00019452,2]
[315346740,1708985439191,-500.0,0.00019452,2]
[315346742,1708985439200,-500.0,0.00019452,2]
[315346744,1708985439210,-9961.08,0.00019452,2]
[315346746,1708985439219,-500.0,0.00019452,2]
[315346748,1708985439228,-166.666666,0.00019627,2]
[315346750,1708985439237,-535.63750162,0.00019686,2]
[315346752,1708985439247,-243.58118859,0.00019725,2]
[315346754,1708985439256,-551.97,0.00019725,2]
[315346756,1708985439265,-551.97,0.00019725,2]
[315346758,1708985439274,-551.97,0.00019725,2]
[315346760,1708985439283,-551.97,0.00019725,2]
[315346762,1708985439291,-500.0,0.00019726,2]
[315346764,1708985439301,-500.0,0.00019726,2]
[315346766,1708985439311,-298.70806404,0.00019726,2]
[315346768,1708985439320,-503.94439511,0.00019726,2]
[315346770,1708985439329,-500.0,0.00019726,2]
[315346772,1708985439338,-500.0,0.00019726,2]
[315346774,1708985439348,-619.10188517,0.00019726,2]
[315346776,1708985439357,-581.61,0.00019726,2]
[315346778,1708985439366,-500.0,0.00019726,2]
[315346780,1708985439375,-500.0,0.00019726,2]
[315346782,1708985439384,-500.0,0.00019726,2]
[315346784,1708985439393,-500.0,0.00019726,2]
[315346786,1708985439404,-500.0,0.00019726,2]
[315346788,1708985439413,-527.5632554,0.00019726,2]
[315346790,1708985439422,-500.0,0.00019726,2]
[315346792,1708985439431,-500.0,0.00019726,2]
[315346794,1708985439440,-500.0,0.00019726,2]
[315346796,1708985439450,-500.0,0.00019726,2]
[315346797,1708985439459,-500.0,0.00019726,2]
[315346800,1708985439468,-500.0,0.00019726,2]
[315346802,1708985439480,-500.0,0.00019726,2]
[315346804,1708985439489,-500.0,0.00019726,2]
[315346806,1708985439498,-2880.25,0.00019726,2]
[315346808,1708985439507,-500.0,0.00019726,2]
[315346809,1708985439516,-1235.33,0.00019726,2]
[315346811,1708985439526,-500.0,0.00019726,2]
[315346813,1708985439535,-501.26705979,0.00019726,2]
[315346815,1708985439544,-1693.67,0.00019726,2]
[315346817,1708985439553,-1106.21,0.00019726,2]
[315346819,1708985439563,-648.04,0.00019726,2]
[315346821,1708985439572,-500.0,0.00019726,2]
[315346823,1708985439582,-1183.46,0.00019726,2]
[315346825,1708985439591,-546.91782666,0.00019726,2]
[315346827,1708985439600,-500.0,0.00019726,2]
[315346829,1708985439609,-285.47079158,0.00019726,2]
[315346831,1708985439618,-500.0,0.00019726,2]
[315346833,1708985439627,-500.0,0.00019726,2]
[315346835,1708985439636,-500.0,0.00019726,2]
[315346837,1708985439645,-500.0,0.00019726,2]
[315346839,1708985439654,-510.65,0.00019726,2]
[315346841,1708985439663,-500.0,0.00019726,2]
[315346843,1708985439672,-500.0,0.00019726,2]
[315346845,1708985439681,-500.0,0.00019726,2]
[315346847,1708985439690,-500.0,0.00019726,2]
[315346849,1708985439699,-500.0,0.00019726,2]
[315346851,1708985439708,-500.0,0.00019726,2]
[315346853,1708985439718,-500.0,0.00019726,2]
[315346855,1708985439727,-500.0,0.00019726,2]
[315346857,1708985439737,-500.0,0.00019726,2]
[315346859,1708985439746,-527.37919013,0.00019726,2]
[315346861,1708985439755,-170.41229033,0.00019726,2]
[315346863,1708985439764,-500.0,0.00019726,2]
[315346865,1708985439773,-500.0,0.00019726,2]
[315346867,1708985439781,-500.0,0.00019726,2]
[315346869,1708985439790,-500.0,0.00019726,2]
[315346871,1708985439800,-206.9662042,0.00019726,2]
[315346873,1708985439812,-1544.97,0.00019726,2]
[315346875,1708985439821,-500.0,0.00019726,2]
[315346877,1708985439830,-500.0,0.00019726,2]
[315346879,1708985439841,-569.52,0.00019726,2]
[315346881,1708985439851,-3615.0,0.00019726,2]
[315346883,1708985439860,-1728.11,0.00019726,2]
[315346885,1708985439869,-208.72177889,0.00019726,2]
[315346887,1708985439878,-16459.07,0.00019726,2]
[315346889,1708985439888,-1183.28,0.00019726,2]
[315346891,1708985439898,-500.0,0.00019726,2]
[315346893,1708985439907,-500.0,0.00019726,2]
[315346894,1708985439917,-1393.14,0.00019726,2]
[315346897,1708985439927,-500.0,0.00019726,2]
[315346898,1708985439936,-500.0,0.00019726,2]
[315346901,1708985439946,-500.0,0.00019726,2]
[315346902,1708985439956,-1790.68,0.00019726,2]
[315346904,1708985439965,-500.0,0.00019726,2]
[315346906,1708985439976,-6510.06,0.00019726,2]
[315346908,1708985439985,-837.95,0.00019726,2]
[315346910,1708985439995,-500.0,0.00019726,2]
[315346912,1708985440005,-1072.96,0.00019726,2]
[315346914,1708985440014,-3044.48,0.00019726,2]
[315346916,1708985440023,-1384.6,0.00019726,2]
[315346919,1708985440037,-836.22,0.00019726,2]
[315346921,1708985440046,-609.18,0.00019726,2]
[315346922,1708985440055,-587.39,0.00019726,2]
[315346924,1708985440064,-837.42,0.00019726,2]
[315346926,1708985440073,-1636.01,0.00019726,2]
[315346928,1708985440083,-500.0,0.00019726,2]
[315346930,1708985440092,-609.03734484,0.00019726,2]
[315346932,1708985440101,-16398.14,0.00019726,2]
[315346934,1708985440111,-2350.52,0.00019726,2]
[315346936,1708985440121,-500.0,0.00019726,2]
[315346938,1708985440130,-3146.89,0.00019726,2]
[315346940,1708985440139,-500.0,0.00019726,2]
[315346942,1708985440148,-500.0,0.00019726,2]
[315346944,1708985440158,-500.0,0.00019726,2]
[315346946,1708985440168,-1725.21,0.00019726,2]
[315346948,1708985440177,-2517.74,0.00019726,2]
[315346950,1708985440186,-500.0,0.00019726,2]
[315346952,1708985440196,-1992.99,0.00019726,2]
[315346954,1708985440204,-500.0,0.00019726,2]
[315346956,1708985440214,-2352.08,0.00019726,2]
[315346958,1708985440222,-500.0,0.00019726,2]
[315346960,1708985440232,-1897.11,0.00019726,2]
[315346962,1708985440241,-1000.0,0.00019726,2]
[315346964,1708985440252,-500.0,0.00019726,2]
[315346966,1708985440261,-500.0,0.00019726,2]
[315346968,1708985440270,-500.0,0.00019726,2]
[315346970,1708985440280,-500.0,0.00019726,2]
[315346972,1708985440289,-500.0,0.00019726,2]
[315346974,1708985440298,-9961.08,0.00019726,2]
[315346976,1708985440307,-8230.24916882,0.0001989,2]
[315346978,1708985440316,-2463.51589491,0.00019899,2]
[315346980,1708985440325,-500.0,0.00019998,2]
[315346982,1708985440334,-500.0,0.00019998,2]
[315346984,1708985440343,-500.0,0.00019998,2]
[315346986,1708985440352,-500.0,0.00019998,2]
[315346988,1708985440362,-500.0,0.00019998,2]
[315346990,1708985440371,-500.0,0.00019998,2]
[315346992,1708985440381,-210.84492649,0.00019998,2]
[315346994,1708985440390,-500.0,0.00019998,2]
[315346996,1708985440399,-500.0,0.00019998,2]
[315346998,1708985440408,-399.333294,0.00019998,2]
[315347000,1708985440418,-500.0,0.00019998,2]
[315347002,1708985440427,-500.0,0.00019998,2]
[315347004,1708985440436,-500.0,0.00019998,2]
[315347006,1708985440445,-500.0,0.00019998,2]
[315347008,1708985440454,-500.0,0.00019998,2]
[315347010,1708985440464,-500.0,0.00019998,2]
[315347012,1708985440473,-500.0,0.00019998,2]
[315347014,1708985440483,-500.0,0.00019998,2]
[315347016,1708985440492,-500.0,0.00019998,2]
[315347018,1708985440502,-500.0,0.00019998,2]
[315347020,1708985440511,-500.0,0.00019998,2]
[315347022,1708985440520,-256.44210122,0.00019998,2]
[315347024,1708985440530,-243.58118859,0.00019998,2]
[315347026,1708985440541,-399.333294,0.00019998,2]
[315347028,1708985440551,-500.0,0.00019998,2]
[315347030,1708985440560,-500.0,0.00019998,2]
[315347032,1708985440570,-500.0,0.00019998,2]
[315347034,1708985440579,-500.0,0.00019998,2]
[315347036,1708985440588,-500.0,0.00019998,2]
[315347038,1708985440597,-500.0,0.00019998,2]
[315347040,1708985440606,-500.0,0.00019998,2]
[315347042,1708985440616,-500.0,0.00019998,2]
[315347044,1708985440625,-500.0,0.00019998,2]
[315347046,1708985440634,-500.0,0.00019998,2]
[315347048,1708985440643,-104303.12329218,0.00019999,2]
[315347050,1708985440652,-551.97,0.00019999,2]
[315347052,1708985440661,-551.97,0.00019999,2]
[315347054,1708985440670,-551.97,0.00019999,2]
[315347056,1708985440679,-399.333294,0.00019999,2]
[315347058,1708985440688,-500.0,0.00019999,2]
[315347060,1708985440697,-500.0,0.00019999,2]
[315347071,1708985440706,-500.0,0.00019999,2]
[315347073,1708985440804,-500.0,0.00019999,2]
[315347075,1708985440816,-500.0,0.00019999,2]
[315347077,1708985440825,-500.0,0.00019999,2]
[315347079,1708985440835,-500.0,0.00019999,2]
[315347082,1708985440844,-500.0,0.00019999,2]
[315347084,1708985440854,-500.0,0.00019999,2]
[315347086,1708985440863,-500.0,0.00019999,2]
[315347088,1708985440872,-500.0,0.00019999,2]
[315347090,1708985440881,-256.44210122,0.00019999,2]
[315347092,1708985440891,-243.58118859,0.00019999,2]
[315347096,1708985440900,-500.0,0.0002,2]
[315347098,1708985440910,-500.0,0.0002,2]
[315347100,1708985440919,-500.0,0.0002,2]
[315347102,1708985440929,-581.61,0.0002,2]
[315347104,1708985440938,-500.0,0.0002,2]
[315347106,1708985440947,-151.65315589,0.0002,2]
[315347108,1708985440956,-500.0,0.0002,2]
[315347110,1708985440964,-500.0,0.0002,2]
[315347112,1708985440973,-500.0,0.0002,2]
[315347114,1708985440983,-500.0,0.0002,2]
[315347116,1708985440991,-500.0,0.0002,2]
[315347117,1708985441002,-508.16056431,0.0002,2]
[315347119,1708985441011,-307.43320476,0.0002,2]
[315347121,1708985441020,-500.0,0.0002,2]
[315347123,1708985441029,-2880.25,0.0002,2]
[315347125,1708985441037,-1235.33,0.0002,2]
[315347127,1708985441046,-500.0,0.0002,2]
[315347129,1708985441055,-1693.67,0.0002,2]
[315347132,1708985441069,-1106.21,0.0002,2]
[315347134,1708985441078,-648.04,0.0002,2]
[315347136,1708985441088,-520.13908972,0.0002,2]
[315347138,1708985441097,-1183.46,0.0002,2]
[315347140,1708985441107,-500.0,0.0002,2]
[315347142,1708985441116,-253.68558529,0.0002,2]
[315347144,1708985441126,-505.19240896,0.0002,2]
[315347145,1708985441135,-500.0,0.0002,2]
[315347146,1708985441143,-612.89728722,0.0002,2]
[315347147,1708985441152,-510.65,0.0002,2]
[315347148,1708985441161,-500.0,0.0002,2]
[315347149,1708985441170,-500.0,0.0002,2]
[315347150,1708985441179,-500.0,0.0002,2]
[315347151,1708985441188,-500.0,0.0002,2]
[315347153,1708985441200,-559.01,0.0002,2]
[315347155,1708985441209,-500.0,0.0002,2]
[315347157,1708985441219,-500.0,0.0002,2]
[315347159,1708985441228,-500.0,0.0002,2]
[315347161,1708985441238,-500.0,0.0002,2]
[315347162,1708985441247,-500.0,0.0002,2]
[315347164,1708985441258,-500.0,0.0002,2]
[315347166,1708985441270,-1544.97,0.0002,2]
[315347168,1708985441278,-500.0,0.0002,2]
[315347170,1708985441287,-500.0,0.0002,2]
[315347172,1708985441296,-569.52,0.0002,2]
[315347174,1708985441305,-3615.0,0.0002,2]
[315347176,1708985441314,-1728.11,0.0002,2]
[315347178,1708985441324,-16459.07,0.0002,2]
[315347180,1708985441333,-1183.28,0.0002,2]
[315347182,1708985441342,-500.0,0.0002,2]
[315347184,1708985441351,-500.0,0.0002,2]
[315347186,1708985441361,-1393.14,0.0002,2]
[315347188,1708985441370,-500.0,0.0002,2]
[315347190,1708985441380,-500.0,0.0002,2]
[315347192,1708985441389,-500.0,0.0002,2]
[315347194,1708985441398,-1790.68,0.0002,2]
[315347196,1708985441408,-183.1900104,0.0002,2]
[315347198,1708985441417,-6510.06,0.0002,2]
[315347200,1708985441426,-837.95,0.0002,2]
[315347202,1708985441435,-500.0,0.0002,2]
[315347204,1708985441444,-1072.96,0.0002,2]
[315347206,1708985441453,-3044.48,0.0002,2]
[315347208,1708985441462,-1384.6,0.0002,2]
[315347210,1708985441470,-836.22,0.0002,2]
[315347212,1708985441479,-609.18,0.0002,2]
[315347214,1708985441488,-587.39,0.0002,2]
[315347215,1708985441499,-837.42,0.0002,2]
[315347217,1708985441508,-1636.01,0.0002,2]
[315347219,1708985441517,-500.0,0.0002,2]
[315347221,1708985441526,-16398.14,0.0002,2]
[315347223,1708985441535,-2350.52,0.0002,2]
[315347225,1708985441545,-3146.89,0.0002,2]
[315347227,1708985441553,-394.19851739,0.0002,2]
[315347229,1708985441563,-504.38560451,0.0002,2]
[315347231,1708985441572,-500.0,0.0002,2]
[315347233,1708985441581,-175.5,0.0002,2]
[315347235,1708985441590,-1725.21,0.0002,2]
[315347237,1708985441599,-2517.74,0.0002,2]
[315347239,1708985441608,-500.0,0.0002,2]
[315347241,1708985441618,-1992.99,0.0002,2]
[315347243,1708985441627,-500.0,0.0002,2]
[315347245,1708985441636,-2352.08,0.0002,2]
[315347247,1708985441646,-500.0,0.0002,2]
[315347249,1708985441655,-1897.11,0.0002,2]
[315347251,1708985441665,-195.0089163,0.0002,2]
[315347253,1708985441673,-500.0,0.0002,2]
[315347255,1708985441682,-9961.08,0.0002,2]
[315347257,1708985441691,-2463.51589487,0.0002001,2]
[315347259,1708985441700,-535.63750162,0.00020021,2]
[315347261,1708985441709,-166.666666,0.00020076,2]
[315347263,1708985441718,-2463.51589487,0.00020121,2]
[315347265,1708985441727,-2463.51589487,0.00020233,2]
[315347267,1708985441736,-551.97,0.00020233,2]
[315347269,1708985441746,-551.97,0.00020272,2]
[315347271,1708985441757,-551.97,0.00020272,2]
[315347273,1708985441766,-551.97,0.00020272,2]
[315347275,1708985441776,-551.97,0.00020272,2]
[315347277,1708985441786,-551.97,0.00020272,2]
[315347279,1708985441795,-552.13890417,0.00020272,2]
[315347281,1708985441805,-500.0,0.00020273,2]
[315347283,1708985441816,-581.61,0.00020273,2]
[315347285,1708985441825,-500.0,0.00020273,2]
[315347287,1708985441834,-570.73700149,0.00020273,2]
[315347289,1708985441845,-500.0,0.00020273,2]
[315347291,1708985441854,-500.0,0.00020273,2]
[315347293,1708985441864,-500.0,0.00020273,2]
[315347295,1708985441873,-500.0,0.00020273,2]
[315347297,1708985441883,-500.0,0.00020273,2]
[315347299,1708985441892,-2880.25,0.00020273,2]
[315347300,1708985441902,-1235.33,0.00020273,2]
[315347303,1708985441911,-500.0,0.00020273,2]
[315347305,1708985441920,-1693.67,0.00020273,2]
[315347307,1708985441929,-1106.21,0.00020273,2]
[315347309,1708985441939,-648.04,0.00020273,2]
[315347311,1708985441949,-1183.46,0.00020273,2]
[315347313,1708985441958,-500.0,0.00020273,2]
[315347314,1708985441967,-356.05453121,0.00020273,2]
[315347316,1708985441976,-510.65,0.00020273,2]
[315347318,1708985441986,-599.32113088,0.00020273,2]
[315347321,1708985441995,-500.0,0.00020273,2]
[315347322,1708985442005,-500.0,0.00020273,2]
[315347324,1708985442015,-500.0,0.00020273,2]
[315347326,1708985442024,-500.0,0.00020273,2]
[315347329,1708985442037,-500.0,0.00020273,2]
[315347331,1708985442048,-500.0,0.00020273,2]
[315347333,1708985442057,-500.0,0.00020273,2]
[315347335,1708985442066,-505.08,0.00020273,2]
[315347337,1708985442076,-515.55018952,0.00020273,2]
[315347339,1708985442084,-1544.97,0.00020273,2]
[315347341,1708985442094,-500.0,0.00020273,2]
[315347343,1708985442102,-500.0,0.00020273,2]
[315347345,1708985442112,-569.52,0.00020273,2]
[315347347,1708985442121,-3615.0,0.00020273,2]
[315347349,1708985442131,-1728.11,0.00020273,2]
[315347350,1708985442140,-16459.07,0.00020273,2]
[315347352,1708985442149,-1183.28,0.00020273,2]
[315347354,1708985442158,-500.0,0.00020273,2]
[315347356,1708985442167,-500.0,0.00020273,2]
[315347358,1708985442176,-1393.14,0.00020273,2]
[315347360,1708985442185,-500.0,0.00020273,2]
[315347362,1708985442194,-500.0,0.00020273,2]
[315347364,1708985442203,-500.0,0.00020273,2]
[315347366,1708985442212,-1790.68,0.00020273,2]
[315347368,1708985442221,-6510.06,0.00020273,2]
[315347370,1708985442230,-837.95,0.00020273,2]
[315347372,1708985442239,-500.0,0.00020273,2]
[315347374,1708985442249,-1072.96,0.00020273,2]
[315347376,1708985442258,-3044.48,0.00020273,2]
[315347378,1708985442266,-1384.6,0.00020273,2]
[315347380,1708985442275,-836.22,0.00020273,2]
[315347382,1708985442284,-609.18,0.00020273,2]
[315347384,1708985442293,-587.39,0.00020273,2]
[315347386,1708985442302,-837.42,0.00020273,2]
[315347388,1708985442310,-1636.01,0.00020273,2]
[315347390,1708985442319,-500.0,0.00020273,2]
[315347392,1708985442329,-16398.14,0.00020273,2]
[315347394,1708985442338,-2350.52,0.00020273,2]
[315347396,1708985442347,-3146.89,0.00020273,2]
[315347398,1708985442356,-500.0,0.00020273,2]
[315347400,1708985442366,-1725.21,0.00020273,2]
[315347402,1708985442375,-2517.74,0.00020273,2]
[315347404,1708985442385,-445.15151482,0.00020273,2]
[315347406,1708985442394,-1992.99,0.00020273,2]
[315347408,1708985442403,-328.19481189,0.00020273,2]
[315347410,1708985442413,-2352.08,0.00020273,2]
[315347412,1708985442422,-500.0,0.00020273,2]
[315347414,1708985442431,-1897.11,0.00020273,2]
[315347416,1708985442440,-500.0,0.00020273,2]
[315347418,1708985442449,-9961.08,0.00020273,2]
[315347419,1708985442458,-1213.24953419,0.00020328,2]
[315347422,1708985442468,-2463.51589487,0.00020344,2]
[315347423,1708985442478,-535.63750162,0.00020355,2]
[315347425,1708985442488,-2463.51589487,0.00020455,2]
[315347427,1708985442497,-1213.28596665,0.00020506,2]
[315347429,1708985442507,-166.666666,0.00020524,2]
[315347431,1708985442516,-546.76,0.00020538,3]
[315347433,1708985442525,-500.0,0.00020546,2]
[315347435,1708985442534,-500.0,0.00020546,2]
[315347437,1708985442543,-500.0,0.00020546,2]
[315347439,1708985442552,-500.0,0.00020546,2]
[315347441,1708985442561,-500.0,0.00020546,2]
[315347443,1708985442570,-500.0,0.00020546,2]
[315347445,1708985442579,-500.0,0.00020546,2]
[315347447,1708985442588,-500.0,0.00020546,2]
[315347449,1708985442598,-500.0,0.00020546,2]
[315347451,1708985442607,-500.0,0.00020546,2]
[315347452,1708985442615,-500.0,0.00020546,2]
[315347454,1708985442625,-256.44210122,0.00020546,2]
[315347456,1708985442635,-243.58118859,0.00020546,2]
[315347458,1708985442645,-500.0,0.00020547,2]
[315347461,1708985442654,-581.61,0.00020547,2]
[315347463,1708985442664,-500.0,0.00020547,2]
[315347465,1708985442673,-409.1306388,0.00020547,2]
[315347467,1708985442683,-500.0,0.00020547,2]
[315347469,1708985442692,-500.0,0.00020547,2]
[315347471,1708985442701,-500.0,0.00020547,2]
[315347472,1708985442711,-500.0,0.00020547,2]
[315347475,1708985442721,-2880.25,0.00020547,2]
[315347477,1708985442731,-1235.33,0.00020547,2]
[315347478,1708985442740,-500.0,0.00020547,2]
[315347480,1708985442750,-1693.67,0.00020547,2]
[315347483,1708985442759,-1106.21,0.00020547,2]
[315347485,1708985442769,-648.04,0.00020547,2]
[315347487,1708985442779,-1183.46,0.00020547,2]
[315347489,1708985442788,-500.0,0.00020547,2]
[315347491,1708985442797,-510.65,0.00020547,2]
[315347492,1708985442806,-500.0,0.00020547,2]
[315347495,1708985442817,-500.0,0.00020547,2]
[315347496,1708985442827,-500.0,0.00020547,2]
[315347498,1708985442836,-500.0,0.00020547,2]
[315347500,1708985442845,-500.0,0.00020547,2]
[315347502,1708985442855,-500.0,0.00020547,2]
[315347505,1708985442864,-500.0,0.00020547,2]
[315347506,1708985442873,-1544.97,0.00020547,2]
[315347508,1708985442883,-508.6,0.00020547,2]
[315347510,1708985442893,-500.0,0.00020547,2]
[315347512,1708985442902,-569.52,0.00020547,2]
[315347523,1708985442993,-3615.0,0.00020547,2]
[315347525,1708985443003,-1728.11,0.00020547,2]
[315347527,1708985443013,-16459.07,0.00020547,2]
[315347529,1708985443022,-1183.28,0.00020547,2]
[315347531,1708985443031,-500.0,0.00020547,2]
[315347533,1708985443040,-503.32932476,0.00020547,2]
[315347535,1708985443050,-1393.14,0.00020547,2]
[315347537,1708985443058,-500.0,0.00020547,2]
[315347539,1708985443069,-500.0,0.00020547,2]
[315347541,1708985443079,-243.47873614,0.00020547,2]
[315347543,1708985443088,-1790.68,0.00020547,2]
[315347545,1708985443097,-6510.06,0.00020547,2]
[315347547,1708985443106,-837.95,0.00020547,2]
[315347549,1708985443115,-500.0,0.00020547,2]
[315347551,1708985443125,-1072.96,0.00020547,2]
[315347553,1708985443134,-3044.48,0.00020547,2]
[315347555,1708985443144,-1384.6,0.00020547,2]
[315347557,1708985443152,-836.22,0.00020547,2]
[315347559,1708985443162,-609.18,0.00020547,2]
[315347561,1708985443171,-587.39,0.00020547,2]
[315347563,1708985443180,-837.42,0.00020547,2]
[315347565,1708985443189,-1636.01,0.00020547,2]
[315347567,1708985443199,-500.0,0.00020547,2]
[315347569,1708985443208,-16398.14,0.00020547,2]
[315347571,1708985443217,-2350.52,0.00020547,2]
[315347573,1708985443226,-3146.89,0.00020547,2]
[315347575,1708985443236,-500.0,0.00020547,2]
[315347577,1708985443245,-1725.21,0.00020547,2]
[315347578,1708985443255,-2517.74,0.00020547,2]
[315347581,1708985443265,-1992.99,0.00020547,2]
[315347583,1708985443275,-2352.08,0.00020547,2]
[315347585,1708985443285,-1897.11,0.00020547,2]
[315347587,1708985443296,-500.0,0.00020547,2]
[315347589,1708985443305,-9961.08,0.00020547,2]
[315347592,1708985443315,-2463.51589487,0.00020566,2]
[315347595,1708985443325,-290.05288383,0.00020589,2]
[315347598,1708985443335,-1245.9983715,0.00020589,2]
[315347601,1708985443345,-540.95793717,0.00020589,2]
[315347604,1708985443355,-951.21450269,0.0002059,2]
[315347609,1708985443367,-275.35808168,0.0002059,2]
[315347612,1708985443377,-471.63876453,0.0002059,2]
[315347615,1708985443386,-785.95597107,0.00020591,2]
[315347618,1708985443395,-28306.61002828,0.00020591,2]
[315347621,1708985443405,-6050.53789355,0.00020591,2]
[315347623,1708985443414,-33018.40563471,0.00020591,2]
[315347626,1708985443423,-175.0,0.00020591,2]
[315347629,1708985443432,-253.4547672,0.00020591,2]
[315347632,1708985443441,-437.27765218,0.00020591,2]
[315347635,1708985443450,-7680.89206816,0.00020591,2]
[315347638,1708985443459,-680.65643801,0.00020591,2]
[315347641,1708985443468,-2951.05778781,0.00020591,2]
[315347644,1708985443477,-415.34051646,0.00020591,2]
[315347646,1708985443486,-545.76702582,0.00020591,2]
[315347649,1708985443495,-1000.0,0.00020649,2]
[315347652,1708985443505,-1000.0,0.00020677,2]
[315347654,1708985443513,-2463.51589487,0.00020678,2]
[315347656,1708985443522,-535.63750162,0.00020689,2]
[315347658,1708985443531,-179.43256387,0.00020705,2]
[315347661,1708985443540,-428.88796945,0.00020705,2]
[315347664,1708985443549,-273.23870182,0.00020706,2]
[315347667,1708985443558,-4699.22949954,0.00020706,2]
[315347669,1708985443567,-292.07022726,0.00020706,2]
[315347672,1708985443577,-80764.21156681,0.00020707,2]
[315347676,1708985443587,-50000.0,0.00020748,2]
[315347679,1708985443596,-1000.0,0.00020756,2]
[315347681,1708985443606,-1000.0,0.00020762,2]
[315347683,1708985443615,-2463.51589487,0.00020789,2]
[315347685,1708985443624,-50000.0,0.00020789,2]
[315347688,1708985443634,-4698.57354043,0.000208,2]
[315347690,1708985443643,-1000.0,0.00020818,2]
[315347692,1708985443653,-500.0,0.00020821,2]
[315347694,1708985443662,-581.61,0.00020821,2]
[315347695,1708985443672,-500.0,0.00020821,2]
[315347698,1708985443681,-500.0,0.00020821,2]
[315347699,1708985443691,-500.0,0.00020821,2]
[315347701,1708985443700,-500.0,0.00020821,2]
[315347703,1708985443710,-2880.25,0.00020821,2]
[315347705,1708985443719,-1235.33,0.00020821,2]
[315347708,1708985443729,-563.76769332,0.00020821,2]
[315347710,1708985443739,-1693.67,0.00020821,2]
[315347711,1708985443749,-1106.21,0.00020821,2]
[315347713,1708985443759,-648.04,0.00020821,2]
[315347716,1708985443769,-1183.46,0.00020821,2]
[315347718,1708985443778,-510.65,0.00020821,2]
[315347720,1708985443789,-500.0,0.00020821,2]
[315347721,1708985443799,-485.65562093,0.00020821,2]
[315347725,1708985443809,-224.72102061,0.00020821,2]